[Event "17th Caspian Cup-Masters 2019"]
[Site "Anzali"]
[Date "2019.02.15"]
[Round "4.7"]
[White "Daghli, Arash"]
[Black "Tavoosi Rad, Ramtin"]
[Result "1-0"]
[ECO "A40"]
[WhiteElo "2354"]
[BlackElo "2173"]
[Annotator "NA RC"]
[PlyCount "55"]
[EventDate "2019.02.12"]
[EventType "swiss"]
[EventRounds "9"]
[EventCountry "IRI"]
[SourceTitle "playchess.com"]
[Source "ChessBase"]
[SourceQuality "1"]
[TimeControl "5400+30"]

1. d4 {[%emt 0:00:00]} e6 {[%emt 0:01:52]} 2. c4 {[%emt 0:01:14]} b6 {[%emt 0:03:30]} 3. Nc3 {[%emt 0:01:35]} Bb7 {[%emt 0:00:05]} 4. e4 {[%emt 0:00:10]} Bb4 {[%emt 0:01:21]} 5. Bd3 {[%emt 0:00:18]} Ne7 {[%emt 0:10:12]} 6. Nge2 {[%emt 0:02:54]} O-O {[%emt 0:00:54]} 7. O-O {[%emt 0:01:40]} f5 {[%emt 0:07:15]} 8. e5 {[%emt 0:05:45]} Ng6 {[%emt 0:11:12]} 9. a3 {[%emt 0:02:48]} Bxc3 {[%emt 0:02:22]} 10. Nxc3 {[%emt 0:02:53]} d6 {[%emt 0:10:52]} 11. exd6 {[%emt 0:07:14]} Qxd6 {[%emt 0:04:33]} 12. d5 {[%emt 0:04:22]} e5 {[%emt 0:06:53]} 13. f3 {[%emt 0:04:50]} a5 {[%emt 0:07:40]} 14. Be3 {[%emt 0:01:19]} Na6 {[%emt 0:00:23]} 15. Qc2 {[%emt 0:02:30]} Qd7 {[%emt 0:01:31]} 16. Rab1 {[%emt 0:01:22]} e4 {[%emt 0:14:30]} 17. fxe4 {[%emt 0:00:45]} f4 {[%emt 0:00:07]} 18. Bc1 {[%emt 0:11:42]} f3 {[%emt 0:01:06]} 19. Rxf3 {[%emt 0:10:46]} Rxf3 {[%emt 0:00:12]} 20. gxf3 {[%emt 0:00:01]} Rf8 {[%emt 0:00:32]} 21. Qf2 {[%emt 0:00:34]} Ne5 {[%emt 0:09:30]} 22. Be2 {[%emt 0:00:15]} Rf6 {[%emt 0:00:22]} 23. f4 {[%emt 0:03:49]} Ng4 {[%emt 0:03:09]} 24. Bxg4 {[%emt 0:02:32]} Qxg4+ {[%emt 0:00:07]} 25. Qg3 {[%emt 0:00:56]} Qd7 {[%emt 0:01:33]} 26. f5 {[%emt 0:00:09]} Nc5 {[%emt 0:00:21]} 27. Bg5 {[%emt 0:01:49]} Rf8 {[%emt 0:00:15]} 28. b4 {[%emt 0:01:13]} 1-0

[Event "17th Caspian Cup-Masters 2019"]
[Site "Anzali"]
[Date "2019.02.15"]
[Round "4.8"]
[White "Tahbaz, Arash"]
[Black "Nadimifar, Adnan"]
[Result "1-0"]
[ECO "D20"]
[WhiteElo "2484"]
[BlackElo "2241"]
[Annotator "ChessBase"]
[PlyCount "126"]
[EventDate "2019.02.12"]
[EventType "swiss"]
[EventRounds "9"]
[EventCountry "IRI"]
[SourceTitle "playchess.com"]
[Source "ChessBase"]
[SourceQuality "1"]
[TimeControl "5400+30"]

1. d4 {[%emt 0:00:32]} d5 {[%emt 0:00:03]} 2. c4 {[%emt 0:00:06]} dxc4 {[%emt 0:01:47]} 3. e4 {[%emt 0:00:06]} e5 {[%emt 0:00:04]} 4. dxe5 {[%emt 0:01:56]} Qxd1+ {[%emt 0:00:24]} 5. Kxd1 {[%emt 0:00:02]} Nc6 {[%emt 0:00:53]} 6. Bxc4 {[%emt 0:02:03]} Nxe5 {[%emt 0:00:12]} 7. Be2 {[%emt 0:00:05]} Bg4 {[%emt 0:03:13]} 8. f3 {[%emt 0:08:25]} O-O-O+ {[%emt 0:00:12]} 9. Ke1 {[%emt 0:00:09]} Be6 {[%emt 0:01:02]} 10. Be3 {[%emt 0:00:05]} Nd3+ {[%emt 0:06:15]} 11. Bxd3 {[%emt 0:00:09]} Rxd3 {[%emt 0:00:02]} 12. Kf2 {[%emt 0:00:09]} Rd1 {[%emt 0:06:57]} 13. Ke2 {[%emt 0:02:10]} Rd7 {[%emt 0:00:02]} 14. Nc3 {[%emt 0:00:46]} Ne7 {[%emt 0:02:25]} 15. f4 {[%emt 0:02:28]} Nc6 {[%emt 0:08:02]} 16. Nf3 {[%emt 0:01:35]} Be7 {[%emt 0:01:39]} 17. Rhd1 {[%emt 0:01:31]} Rhd8 {[%emt 0:00:28]} 18. Rxd7 {[%emt 0:00:04]} Rxd7 {[%emt 0:00:08]} 19. b3 {[%emt 0:00:59]} f6 {[%emt 0:02:04]} 20. h3 {[%emt 0:00:30]} b6 {[%emt 0:06:38]} 21. g4 {[%emt 0:04:30]} Bf7 {[%emt 0:02:40]} 22. Rg1 {[%emt 0:01:07]} Nb4 {[%emt 0:00:52]} 23. h4 {[%emt 0:04:46]} Nc2 {[%emt 0:06:13]} 24. Bf2 {[%emt 0:00:29]} c5 {[%emt 0:01:03]} 25. f5 {[%emt 0:01:49]} Nd4+ {[%emt 0:06:08]} 26. Bxd4 {[%emt 0:00:28]} cxd4 {[%emt 0:00:05]} 27. Nb5 {[%emt 0:00:59]} d3+ {[%emt 0:00:50]} 28. Ke3 {[%emt 0:00:04]} a5 {[%emt 0:10:07]} 29. Rd1 {[%emt 0:00:28]} a4 {[%emt 0:01:20]} 30. e5 {[%emt 0:00:03]} fxe5 {[%emt 0:11:54]} 31. Nxe5 {[%emt 0:00:17]} Rd5 {[%emt 0:02:44]} 32. Na7+ {[%emt 0:08:05]} Kb7 {[%emt 0:00:11]} 33. Nxf7 {[%emt 0:00:06]} axb3 {[%emt 0:02:15]} 34. axb3 {[%emt 0:01:50]} Bc5+ {[%emt 0:01:07]} 35. Ke4 {[%emt 0:00:14]} Rd4+ {[%emt 0:00:05]} 36. Kf3 {[%emt 0:00:05]} Kxa7 {[%emt 0:05:59]} 37. Ne5 {[%emt 0:00:03]} Rd5 {[%emt 0:00:22]} 38. Nxd3 {[%emt 0:00:39]} h5 {[%emt 0:01:24]} 39. g5 {[%emt 0:07:18]} Rxf5+ {[%emt 0:00:24]} 40. Ke4 {[%emt 0:00:03]} Rf7 {[%emt 0:01:07]} 41. Nxc5 {[%emt 0:02:11]} bxc5 {[%emt 0:00:12]} 42. Rd6 {[%emt 0:00:04]} Kb7 {[%emt 0:03:43]} 43. Kd5 {[%emt 0:00:52]} Rf5+ {[%emt 0:01:24]} 44. Kc4 {[%emt 0:00:02]} Rf4+ {[%emt 0:01:44]} 45. Kxc5 {[%emt 0:00:03]} Rxh4 {[%emt 0:00:07]} 46. Rd7+ {[%emt 0:00:13]} Kc8 {[%emt 0:00:04]} 47. Rxg7 {[%emt 0:00:06]} Rg4 {[%emt 0:01:34]} 48. Kc6 {[%emt 0:25:18]} Kd8 {[%emt 0:00:08]} 49. Kd6 {[%emt 0:00:02]} Ke8 {[%emt 0:00:06]} 50. Ke6 {[%emt 0:03:58]} Kf8 {[%emt 0:00:36]} 51. Rb7 {[%emt 0:00:50]} h4 {[%emt 0:02:37]} 52. Kf6 {[%emt 0:00:04]} Rf4+ {[%emt 0:00:07]} 53. Kg6 {[%emt 0:00:03]} h3 {[%emt 0:01:07]} 54. Rb8+ {[%emt 0:00:05]} Ke7 {[%emt 0:00:04]} 55. Rh8 {[%emt 0:00:06]} Rf3 {[%emt 0:00:07]} 56. b4 {[%emt 0:00:10]} Rb3 {[%emt 0:00:30]} 57. Kg7 {[%emt 0:00:06]} Ke6 {[%emt 0:00:08]} 58. Kg6 {[%emt 0:03:11]} Ke5 {[%emt 0:01:02]} 59. Rh4 {[%emt 0:00:02]} Rc3 {[%emt 0:01:42]} 60. b5 {[%emt 0:00:46]} Rb3 {[%emt 0:00:12]} 61. Kh6 {[%emt 0:00:58]} Ke6 {[%emt 0:01:50]} 62. g6 {[%emt 0:00:18]} Rf3 {[%emt 0:01:35]} 63. g7 {[%emt 0:00:32]} Kd5 1-0

[Event "17th Caspian Cup-Masters 2019"]
[Site "Anzali"]
[Date "2019.02.15"]
[Round "4.9"]
[White "Mirzoev, Azer"]
[Black "Sedaghati, Mehrdad"]
[Result "1-0"]
[ECO "E21"]
[WhiteElo "2483"]
[BlackElo "2219"]
[Annotator "ChessBase"]
[PlyCount "81"]
[EventDate "2019.02.12"]
[EventType "swiss"]
[EventRounds "9"]
[EventCountry "IRI"]
[SourceTitle "playchess.com"]
[Source "ChessBase"]
[SourceQuality "1"]
[TimeControl "5400+30"]

1. d4 {[%emt 0:00:00]} Nf6 {[%emt 0:00:40]} 2. Nf3 {[%emt 0:00:00]} e6 {[%emt 0:00:17]} 3. c4 {[%emt 0:00:00]} b6 {[%emt 0:00:45]} 4. Nc3 {[%emt 0:00:00]} Bb7 {[%emt 0:00:07]} 5. Qc2 {[%emt 0:00:07]} Bb4 {[%emt 0:04:07]} 6. a3 {[%emt 0:00:05]} Bxc3+ {[%emt 0:00:06]} 7. Qxc3 {[%emt 0:00:02]} Ne4 {[%emt 0:01:15]} 8. Qc2 {[%emt 0:00:04]} O-O {[%emt 0:00:40]} 9. g3 {[%emt 0:00:06]} f5 {[%emt 0:17:19]} 10. Bg2 {[%emt 0:00:41]} Qc8 {[%emt 0:00:11]} 11. O-O {[%emt 0:00:10]} Nf6 {[%emt 0:00:53]} 12. Rd1 {[%emt 0:00:48]} Be4 {[%emt 0:01:33]} 13. Qc3 {[%emt 0:01:31]} d6 {[%emt 0:02:14]} 14. b3 {[%emt 0:00:33]} Nbd7 {[%emt 0:00:31]} 15. Bb2 {[%emt 0:00:05]} Qb7 {[%emt 0:00:33]} 16. Rac1 {[%emt 0:00:13]} Rae8 {[%emt 0:11:23]} 17. Bf1 {[%emt 0:03:50]} Qb8 {[%emt 0:06:19]} 18. b4 {[%emt 0:14:45]} Ba8 {[%emt 0:06:14]} 19. d5 {[%emt 0:03:36]} e5 {[%emt 0:03:03]} 20. Qc2 {[%emt 0:01:30]} g6 {[%emt 0:04:17]} 21. Bg2 {[%emt 0:04:15]} Bb7 {[%emt 0:02:53]} 22. Ng5 {[%emt 0:02:03]} Re7 {[%emt 0:03:56]} 23. e3 {[%emt 0:02:04]} Rfe8 {[%emt 0:00:29]} 24. f4 {[%emt 0:07:48]} Bc8 {[%emt 0:06:45]} 25. h3 {[%emt 0:01:41]} Nh5 {[%emt 0:03:25]} 26. Kh2 {[%emt 0:04:41]} Ng7 {[%emt 0:07:30]} 27. Ba1 {[%emt 0:00:51]} Bb7 {[%emt 0:00:47]} 28. Qd2 {[%emt 0:18:16]} Qa8 {[%emt 0:01:04]} 29. fxe5 {[%emt 0:02:22]} Nxe5 {[%emt 0:00:28]} 30. e4 {[%emt 0:00:15]} Rf8 {[%emt 0:05:47]} 31. Rf1 {[%emt 0:02:08]} Qe8 {[%emt 0:01:52]} 32. exf5 {[%emt 0:01:50]} Rxf5 {[%emt 0:00:34]} 33. Rxf5 {[%emt 0:03:37]} Nxf5 {[%emt 0:00:34]} 34. Ne4 {[%emt 0:01:21]} Qa4 {[%emt 0:05:03]} 35. Qc3 {[%emt 0:03:52]} Rf7 {[%emt 0:03:12]} 36. g4 {[%emt 0:03:30]} Ne7 {[%emt 0:00:27]} 37. Qe3 {[%emt 0:01:43]} Qd7 {[%emt 0:00:43]} 38. Ng5 {[%emt 0:01:02]} Rf6 {[%emt 0:00:30]} 39. Bxe5 {[%emt 0:00:25]} dxe5 {[%emt 0:00:03]} 40. Qxe5 {[%emt 0:00:07]} Rf2 {[%emt 0:00:56]} 41. Ne4 {[%emt 0:01:01]} 1-0

[Event "17th Caspian Cup-Masters 2019"]
[Site "Anzali"]
[Date "2019.02.16"]
[Round "6.3"]
[White "Tahbaz, Arash"]
[Black "Pour Agha Bala, Amirreza"]
[Result "1-0"]
[ECO "E10"]
[WhiteElo "2484"]
[BlackElo "2362"]
[Annotator "ChessBase"]
[PlyCount "93"]
[EventDate "2019.02.12"]
[EventType "swiss"]
[EventRounds "9"]
[EventCountry "IRI"]
[SourceTitle "playchess.com"]
[Source "ChessBase"]
[SourceQuality "1"]
[TimeControl "5400+30"]

1. d4 {[%emt 0:06:40]} Nf6 {[%emt 0:00:00]} 2. c4 {[%emt 0:00:07]} e6 {[%emt 0:00:59]} 3. Nf3 {[%emt 0:00:09]} c5 {[%emt 0:02:26]} 4. g3 {[%emt 0:01:07]} cxd4 {[%emt 0:01:22]} 5. Nxd4 {[%emt 0:00:25]} Nc6 {[%emt 0:05:22]} 6. Bg2 {[%emt 0:00:16]} Bc5 {[%emt 0:00:45]} 7. Nb3 {[%emt 0:02:09]} Be7 {[%emt 0:00:10]} 8. Nc3 {[%emt 0:00:08]} d6 {[%emt 0:00:17]} 9. Nd4 {[%emt 0:01:00]} Nxd4 {[%emt 0:02:44]} 10. Qxd4 {[%emt 0:00:22]} O-O {[%emt 0:00:09]} 11. O-O {[%emt 0:00:21]} a6 {[%emt 0:00:07]} 12. b3 {[%emt 0:00:14]} Rb8 {[%emt 0:02:28]} 13. a4 {[%emt 0:01:11]} Bd7 {[%emt 0:04:18]} 14. Ba3 {[%emt 0:02:11]} Bc6 {[%emt 0:00:24]} 15. e4 {[%emt 0:01:05]} Qd7 {[%emt 0:25:36]} 16. Rfd1 {[%emt 0:02:17]} Rfd8 {[%emt 0:00:18]} 17. a5 {[%emt 0:13:29]} Qc7 {[%emt 0:01:23]} 18. Qe3 {[%emt 0:00:58]} b6 {[%emt 0:10:31]} 19. e5 {[%emt 0:03:06]} Ng4 {[%emt 0:13:02]} 20. exd6 {[%emt 0:00:09]} Bxd6 {[%emt 0:00:35]} 21. Bxd6 {[%emt 0:00:57]} Rxd6 {[%emt 0:00:23]} 22. axb6 {[%emt 0:00:19]} Qb7 {[%emt 0:05:33]} 23. Bxc6 {[%emt 0:02:15]} Nxe3 {[%emt 0:02:27]} 24. Bxb7 {[%emt 0:00:10]} Nxd1 {[%emt 0:00:05]} 25. Nxd1 {[%emt 0:01:09]} Rxb6 {[%emt 0:00:12]} 26. Bf3 {[%emt 0:00:50]} Rxb3 {[%emt 0:00:07]} 27. Kg2 {[%emt 0:00:07]} Rb1 {[%emt 0:01:51]} 28. Rxa6 {[%emt 0:00:33]} Rc1 {[%emt 0:00:04]} 29. Rc6 {[%emt 0:00:57]} g6 {[%emt 0:00:18]} 30. Ne3 {[%emt 0:00:59]} Kg7 {[%emt 0:00:26]} 31. Rc7 {[%emt 0:01:32]} h5 {[%emt 0:02:29]} 32. c5 {[%emt 0:01:36]} Rb5 {[%emt 0:00:22]} 33. c6 {[%emt 0:00:11]} Rbc5 {[%emt 0:00:05]} 34. h4 {[%emt 0:00:24]} Kg8 {[%emt 0:03:19]} 35. Nf1 {[%emt 0:02:03]} R1c2 {[%emt 0:01:05]} 36. Rd7 {[%emt 0:00:11]} f5 {[%emt 0:02:23]} 37. Nd2 {[%emt 0:02:32]} R5c3 {[%emt 0:02:48]} 38. Nb3 {[%emt 0:08:29]} e5 {[%emt 0:00:55]} 39. Bd1 {[%emt 0:02:48]} Rxc6 {[%emt 0:00:48]} 40. Bxc2 {[%emt 0:00:04]} Rxc2 {[%emt 0:00:06]} 41. Nd2 {[%emt 0:00:06]} Ra2 {[%emt 0:00:50]} 42. Nc4 {[%emt 0:00:21]} e4 {[%emt 0:00:07]} 43. Rd2 {[%emt 0:00:51]} Rxd2 {[%emt 0:00:51]} 44. Nxd2 {[%emt 0:00:02]} Kf7 {[%emt 0:00:08]} 45. Kf1 {[%emt 0:00:44]} Kf6 {[%emt 0:00:22]} 46. Ke2 {[%emt 0:00:18]} g5 {[%emt 0:00:23]} 47. Ke3 {[%emt 0:00:21]} 1-0

[Event "17th Caspian Cup-Masters 2019"]
[Site "Anzali"]
[Date "2019.02.16"]
[Round "6.7"]
[White "Daghli, Arash"]
[Black "Atakhan, Abtin"]
[Result "1-0"]
[ECO "E71"]
[WhiteElo "2354"]
[BlackElo "2179"]
[Annotator "NA"]
[PlyCount "79"]
[EventDate "2019.02.12"]
[EventType "swiss"]
[EventRounds "9"]
[EventCountry "IRI"]
[SourceTitle "playchess.com"]
[Source "ChessBase"]
[SourceQuality "1"]
[TimeControl "5400+30"]

1. d4 {[%emt 0:00:00]} Nf6 {[%emt 0:00:00]} 2. c4 {[%emt 0:00:00]} g6 {[%emt 0:00:00]} 3. Nc3 {[%emt 0:00:00]} Bg7 {[%emt 0:00:00]} 4. e4 {[%emt 0:00:01]} d6 {[%emt 0:00:00]} 5. h3 {[%emt 0:00:09]} O-O {[%emt 0:00:00]} 6. Be3 {[%emt 0:00:07]} c5 {[%emt 0:00:03]} 7. Nf3 {[%emt 0:00:11]} cxd4 {[%emt 0:00:04]} 8. Nxd4 {[%emt 0:00:23]} b6 {[%emt 0:00:02]} 9. Qd2 {[%emt 0:00:13]} Bb7 {[%emt 0:00:06]} 10. f3 {[%emt 0:00:13]} Nbd7 {[%emt 0:01:34]} 11. Bh6 {[%emt 0:01:36]} e5 {[%emt 0:04:17]} 12. Bxg7 {[%emt 0:00:39]} exd4 {[%emt 0:04:16]} 13. Bxf6 {[%emt 0:00:58]} Qxf6 {[%emt 0:00:11]} 14. Nb5 {[%emt 0:00:25]} a6 {[%emt 0:15:53]} 15. Nxd4 {[%emt 0:00:12]} Rac8 {[%emt 0:00:10]} 16. Rd1 {[%emt 0:10:42]} Rfe8 {[%emt 0:04:00]} 17. Ne2 {[%emt 0:23:39]} Ne5 {[%emt 0:07:02]} 18. Nc3 {[%emt 0:02:04]} Qe7 {[%emt 0:19:25]} 19. Kf2 {[%emt 0:03:17]} Red8 {[%emt 0:10:34]} 20. Qd4 {[%emt 0:01:18]} Qc7 {[%emt 0:01:40]} 21. h4 {[%emt 0:02:11]} h5 {[%emt 0:00:25]} 22. Be2 {[%emt 0:01:05]} Ba8 {[%emt 0:01:55]} 23. Rc1 {[%emt 0:02:00]} Qc5 {[%emt 0:04:24]} 24. Rhd1 {[%emt 0:02:55]} Nc6 {[%emt 0:02:36]} 25. Qe3 {[%emt 0:04:26]} Ne5 {[%emt 0:01:44]} 26. Na4 {[%emt 0:02:25]} Qxe3+ {[%emt 0:01:19]} 27. Kxe3 {[%emt 0:00:01]} Rb8 {[%emt 0:00:15]} 28. Nc3 {[%emt 0:00:24]} Kf8 {[%emt 0:00:38]} 29. Rd4 {[%emt 0:03:50]} Ke7 {[%emt 0:00:56]} 30. Rcd1 {[%emt 0:00:12]} Rbc8 {[%emt 0:00:21]} 31. f4 {[%emt 0:00:48]} Ng4+ {[%emt 0:00:09]} 32. Bxg4 {[%emt 0:00:08]} hxg4 {[%emt 0:00:02]} 33. g3 {[%emt 0:00:28]} Bc6 {[%emt 0:02:15]} 34. R1d2 {[%emt 0:03:46]} f5 {[%emt 0:00:58]} 35. e5 {[%emt 0:10:12]} dxe5 {[%emt 0:00:11]} 36. fxe5 {[%emt 0:00:01]} Bf3 {[%emt 0:00:20]} 37. Rxd8 {[%emt 0:00:28]} Rxd8 {[%emt 0:00:01]} 38. Rxd8 {[%emt 0:00:19]} Kxd8 {[%emt 0:00:01]} 39. Nd5 {[%emt 0:00:23]} b5 {[%emt 0:00:33]} 40. Nf4 {[%emt 0:00:07]} 1-0

[Event "17th Caspian Cup-Masters 2019"]
[Site "Anzali"]
[Date "2019.02.16"]
[Round "6.8"]
[White "Naderi, M.sadegh"]
[Black "Omidi, Arya"]
[Result "1-0"]
[ECO "A40"]
[WhiteElo "2242"]
[BlackElo "2354"]
[Annotator "NA"]
[PlyCount "113"]
[EventDate "2019.02.12"]
[EventType "swiss"]
[EventRounds "9"]
[EventCountry "IRI"]
[SourceTitle "playchess.com"]
[Source "ChessBase"]
[SourceQuality "1"]
[TimeControl "5400+30"]

1. d4 {[%emt 0:00:00]} g6 {[%emt 0:06:22]} 2. c4 {[%emt 0:00:00]} Bg7 {[%emt 0:00:32]} 3. e4 {[%emt 0:00:01]} e6 {[%emt 0:00:07]} 4. Nc3 {[%emt 0:00:13]} Ne7 {[%emt 0:00:13]} 5. Nf3 {[%emt 0:00:36]} d5 {[%emt 0:00:06]} 6. e5 {[%emt 0:01:04]} Nbc6 {[%emt 0:00:12]} 7. Bf4 {[%emt 0:07:09]} b6 {[%emt 0:03:07]} 8. h4 {[%emt 0:07:03]} h6 {[%emt 0:01:41]} 9. Be2 {[%emt 0:03:09]} Bb7 {[%emt 0:01:18]} 10. Qd2 {[%emt 0:08:52]} Qd7 {[%emt 0:01:40]} 11. Rd1 {[%emt 0:03:02]} dxc4 {[%emt 0:08:26]} 12. Bxc4 {[%emt 0:00:41]} Nb4 {[%emt 0:00:25]} 13. Qe2 {[%emt 0:06:42]} Nbd5 {[%emt 0:03:43]} 14. Bc1 {[%emt 0:00:09]} O-O-O {[%emt 0:04:39]} 15. Bb5 {[%emt 0:07:31]} Bc6 {[%emt 0:01:51]} 16. a4 {[%emt 0:02:40]} a5 {[%emt 0:01:57]} 17. Ne4 {[%emt 0:06:41]} Kb8 {[%emt 0:01:55]} 18. Bd2 {[%emt 0:00:53]} Bxb5 {[%emt 0:03:53]} 19. axb5 {[%emt 0:00:20]} Nc8 {[%emt 0:00:00]} 20. O-O {[%emt 0:11:52]} Na7 {[%emt 0:00:00]} 21. Nc3 {[%emt 0:00:44]} Bf8 {[%emt 0:00:00]} 22. Rc1 {[%emt 0:02:00]} Be7 {[%emt 0:00:17]} 23. g3 {[%emt 0:02:20]} Rdg8 {[%emt 0:04:46]} 24. Ne1 {[%emt 0:03:31]} Rd8 {[%emt 0:05:07]} 25. Ng2 {[%emt 0:01:15]} h5 {[%emt 0:02:07]} 26. Rfd1 {[%emt 0:00:45]} Rhg8 {[%emt 0:06:15]} 27. Nf4 {[%emt 0:06:28]} Nxc3 {[%emt 0:05:54]} 28. bxc3 {[%emt 0:00:01]} Qxb5 {[%emt 0:00:10]} 29. c4 {[%emt 0:01:02]} Qa6 {[%emt 0:00:01]} 30. Be3 {[%emt 0:02:16]} Nc6 {[%emt 0:03:55]} 31. Qf3 {[%emt 0:01:38]} Qb7 {[%emt 0:00:45]} 32. Ne2 {[%emt 0:00:54]} Rgf8 {[%emt 0:05:02]} 33. Bh6 {[%emt 0:04:23]} Rh8 {[%emt 0:00:25]} 34. Bg7 {[%emt 0:01:50]} Rh7 {[%emt 0:00:48]} 35. Bf6 {[%emt 0:00:06]} Rd7 {[%emt 0:01:34]} 36. d5 {[%emt 0:03:15]} Nb4 {[%emt 0:00:52]} 37. Bxe7 {[%emt 0:02:40]} Rxe7 {[%emt 0:00:02]} 38. Qf6 {[%emt 0:00:35]} Re8 {[%emt 0:00:50]} 39. Nf4 {[%emt 0:00:37]} Qc8 {[%emt 0:01:46]} 40. c5 {[%emt 0:03:45]} exd5 {[%emt 0:03:54]} 41. cxb6 {[%emt 0:00:20]} c6 {[%emt 0:00:01]} 42. Nxd5 {[%emt 0:01:13]} Re6 {[%emt 0:00:01]} 43. Qf3 {[%emt 0:00:41]} Kb7 {[%emt 0:00:55]} 44. Nf6 {[%emt 0:00:31]} Rh8 {[%emt 0:00:07]} 45. Rd7+ {[%emt 0:00:16]} Kxb6 {[%emt 0:00:24]} 46. Rxf7 {[%emt 0:00:39]} Rd8 {[%emt 0:00:27]} 47. Qe3+ {[%emt 0:00:32]} c5 {[%emt 0:00:01]} 48. f4 {[%emt 0:00:32]} Rc6 {[%emt 0:00:29]} 49. Ne4 {[%emt 0:00:22]} Rd3 {[%emt 0:00:19]} 50. Qf2 {[%emt 0:00:19]} a4 {[%emt 0:01:23]} 51. Rf6 {[%emt 0:00:46]} Rxf6 {[%emt 0:05:03]} 52. exf6 {[%emt 0:00:01]} Na6 {[%emt 0:00:45]} 53. f7 {[%emt 0:00:54]} a3 {[%emt 0:00:50]} 54. Rb1+ {[%emt 0:00:38]} Ka7 {[%emt 0:00:22]} 55. Qe2 {[%emt 0:00:31]} Rd8 {[%emt 0:00:43]} 56. Nd6 {[%emt 0:00:29]} Qc6 {[%emt 0:03:29]} 57. Qe7+ {[%emt 0:00:30] Qc8} 1-0

[Event "17th Caspian Cup-Masters 2019"]
[Site "Anzali"]
[Date "2019.02.16"]
[Round "6.9"]
[White "Yeritsyan, Hayk"]
[Black "Aminikiasari, Amer"]
[Result "1/2-1/2"]
[ECO "A05"]
[WhiteElo "2152"]
[BlackElo "2318"]
[Annotator "NA"]
[PlyCount "28"]
[EventDate "2019.02.12"]
[EventType "swiss"]
[EventRounds "9"]
[EventCountry "IRI"]
[SourceTitle "playchess.com"]
[Source "ChessBase"]
[SourceQuality "1"]
[TimeControl "5400+30"]

1. Nf3 {[%emt 0:00:00]} Nf6 {[%emt 0:01:28]} 2. b3 {[%emt 0:00:00]} d5 {[%emt 0:00:37]} 3. Bb2 {[%emt 0:00:09]} Bf5 {[%emt 0:00:35]} 4. e3 {[%emt 0:00:36]} e6 {[%emt 0:00:42]} 5. Be2 {[%emt 0:00:14]} h6 {[%emt 0:02:07]} 6. O-O {[%emt 0:00:24]} Nbd7 {[%emt 0:06:32]} 7. c4 {[%emt 0:00:14]} Be7 {[%emt 0:00:43]} 8. d3 {[%emt 0:00:33]} O-O {[%emt 0:00:33]} 9. Nbd2 {[%emt 0:00:52]} c6 {[%emt 0:03:47]} 10. Qc2 {[%emt 0:03:08]} a5 {[%emt 0:00:43]} 11. a3 {[%emt 0:02:10]} Qb8 {[%emt 0:01:43]} 12. Rac1 {[%emt 0:02:31]} Rd8 {[%emt 0:00:44]} 13. Rfd1 {[%emt 0:01:43]} Qa7 {[%emt 0:02:50]} 14. Qb1 {[%emt 0:03:24]} Bh7 {[%emt 0:00:58]} 1/2-1/2

[Event "17th Caspian Cup-Masters 2019"]
[Site "Anzali"]
[Date "2019.02.17"]
[Round "7.8"]
[White "Sedaghati, Mehrdad"]
[Black "Yeritsyan, Hayk"]
[Result "0-1"]
[ECO "B13"]
[WhiteElo "2219"]
[BlackElo "2152"]
[Annotator "NA"]
[PlyCount "96"]
[EventDate "2019.02.12"]
[EventType "swiss"]
[EventRounds "9"]
[EventCountry "IRI"]
[SourceTitle "playchess.com"]
[Source "ChessBase"]
[SourceQuality "1"]
[TimeControl "5400+30"]

1. e4 c6 {[%emt 0:03:06]} 2. d4 {[%emt 0:01:36]} d5 {[%emt 0:00:07]} 3. exd5 {[%emt 0:00:57]} cxd5 {[%emt 0:00:09]} 4. Bd3 {[%emt 0:00:02]} Nc6 {[%emt 0:00:18]} 5. c3 {[%emt 0:00:02]} Nf6 {[%emt 0:00:08]} 6. Bf4 {[%emt 0:00:56]} Bg4 {[%emt 0:01:21]} 7. Qb3 {[%emt 0:01:49]} Qd7 {[%emt 0:00:08]} 8. Nd2 {[%emt 0:00:48]} e6 {[%emt 0:01:15]} 9. Ngf3 {[%emt 0:01:38]} Bd6 {[%emt 0:00:22]} 10. Ne5 {[%emt 0:04:04] B13: Caro-Kann: Exchange Variation and Panov-Botvinnik Attack} (10. Bxd6 Qxd6 11. O-O O-O 12. Rfe1 Ne7 13. Ne5 Bf5 14. Bf1 Rab8 15. a4 Ne4 16. Nxe4 Bxe4 17. a5 f6 18. Nd3 Bxd3 19. Bxd3 {½-½ (45) Anand,V (2768)-Mamedyarov,S (2801) Saint Louis 2018}) 10... Qc7 {[%emt 0:00:15]} 11. O-O {[%emt 0:13:26]} O-O {[%emt 0:12:42]} 12. Rfe1 $146 {[%emt 0:10:30]} ({Predecessor:} 12. Nxg4 Bxf4 13. Nxf6+ gxf6 14. Qd1 Kh8 15. g3 Rg8 16. Kh1 Bd6 17. Qh5 Rg7 {½-½ (44) Horvath,A (2409)-Gardarsson,H (2482) ICCF email 2006}) 12... Bh5 {[%emt 0:00:21]} 13. Bg3 {[%emt 0:01:48]} Bxe5 {[%emt 0:03:03]} 14. Bxe5 {[%emt 0:04:47]} Nxe5 {[%emt 0:00:08]} 15. Rxe5 {[%emt 0:02:25]} Bg6 {[%emt 0:00:07]} 16. Bxg6 {[%emt 0:00:06]} hxg6 {[%emt 0:00:05]} 17. Re3 {[%emt 0:00:40]} b5 {[%emt 0:05:11]} 18. a4 {[%emt 0:03:56]} a6 {[%emt 0:06:48]} 19. Ree1 {[%emt 0:02:23]} Rab8 {[%emt 0:06:30]} 20. axb5 {[%emt 0:11:16]} Rxb5 {[%emt 0:04:32]} 21. Qc2 {[%emt 0:00:01]} Qb6 {[%emt 0:00:25]} 22. Reb1 {[%emt 0:02:23]} Rc8 {[%emt 0:01:19]} 23. Nf3 {[%emt 0:10:10]} Ne4 {[%emt 0:00:58]} 24. h4 {[%emt 0:04:30]} a5 {[%emt 0:09:22]} 25. Ra3 {[%emt 0:05:22]} f6 {[%emt 0:04:00]} 26. Raa1 {[%emt 0:04:23]} Kf7 {[%emt 0:06:01]} 27. Qc1 {[%emt 0:00:39]} Qc7 {[%emt 0:02:02]} 28. Nd2 {[%emt 0:01:58]} Nd6 {[%emt 0:00:11]} 29. Qe1 {[%emt 0:00:43]} Rcb8 {[%emt 0:02:20]} 30. Ra2 {[%emt 0:05:51]} Rh8 {[%emt 0:08:21]} 31. g3 {[%emt 0:00:33]} Nf5 {[%emt 0:06:13]} 32. Nf3 {[%emt 0:01:19]} Qc4 {[%emt 0:00:41]} 33. Rba1 {[%emt 0:00:39]} Qd3 {[%emt 0:00:36]} 34. Qf1 {[%emt 0:03:26]} Qxf3 {[%emt 0:07:41]} 35. Qxb5 {[%emt 0:00:03]} g5 {[%emt 0:00:05]} 36. Qf1 {[%emt 0:01:32] [#]} Nxh4 $1 {[%emt 0:03:56]} 37. Rxa5 {[%emt 0:01:07]} Qe4 {[%emt 0:00:04]} 38. Ra7+ {[%emt 0:00:15]} Kg6 {[%emt 0:00:03]} 39. gxh4 {[%emt 0:00:47]} Rxh4 {[%emt 0:00:04]} 40. Qg2 $19 {[%emt 0:00:35]} Rg4 {[%emt 0:00:04]} 41. Qxg4 {[%emt 0:00:06]} Qxg4+ {[%emt 0:00:04]} 42. Kf1 {[%emt 0:00:03]} Qf3 {[%emt 0:00:58]} 43. R1a6 {[%emt 0:00:35]} Qd1+ {[%emt 0:01:45]} 44. Kg2 {[%emt 0:00:03]} g4 {[%emt 0:02:51]} 45. Rxe6 {[%emt 0:00:30]} Qf3+ {[%emt 0:00:11]} 46. Kg1 {[%emt 0:01:40]} g3 {[%emt 0:00:05]} 47. fxg3 {[%emt 0:00:18]} Qxg3+ {[%emt 0:00:03]} 48. Kf1 {[%emt 0:00:01]} Qh3+ {[%emt 0:00:06]} 0-1